Cogmind - Beta 15 @@@ ROGUE MODE // 2025.05.26 @ 17:21:37 Player: Elias Result: Self-destructed Performance ------------- Evolutions (2) 1000 Regions Visited (5) 1000 Robots Destroyed (31) 155 Value Destroyed (615) 615 Prototype IDs (23) 460 Alien Tech Used (0) 0 Bonus (300) 300 TOTAL SCORE: 3530 Bonus ------- Aligned with FarCom 300 Cogmind --------- Core Integrity 379/550 Matter 182/300 Energy 125/125 System Corruption 0% Temperature Cool (0) Movement Walking (190) Ox1 Location -8/Materials Parts ------- > --- POWER (1) -------- Light Ion Engine > --- PROPULSION (4) --- Aluminum Leg Aluminum Leg > --- UTILITY (3) ------ (None) > --- WEAPON (3) ------- YOLO Cannon > --- INVENTORY (5) ---- Medium Storage Unit Assault Rifle Peak State ------------ > --- POWER ------------ Light Ion Engine > --- PROPULSION ------- Flight Unit > --- UTILITY ---------- Small Storage Unit > --- WEAPON ----------- YOLO Cannon > --- INVENTORY -------- Light Ion Engine Aluminum Leg Aluminum Leg Medium Storage Unit Assault Rifle [Rating: 23] Favorites ----------- Power Light Ion Engine Engine Light Ion Engine Propulsion Flight Unit Leg Aluminum Leg Flight Unit Flight Unit Utility Small Storage Unit Device Improved Terrain Scanner Storage Small Storage Unit Weapon Light Assault Rifle Energy Gun Medium Laser Energy Cannon YOLO Cannon Ballistic Gun Light Assault Rifle Build | -11 -10 -10 -10 -9 -8 ------- Run | Yrd Mat Min Exi Min Mat Slots Evolved 4 | . . . . . 4 Power . | . . . . . . Propulsion 2 | . . . . . 2 Utility 1 | . . . . . 1 Weapon 1 | . . . . . 1 Parts Attached 21 | 7 3 8 1 . 2 Power 4 | 1 . 1 1 . 1 Engine 4 | 1 . 1 1 . 1 Core . | . . . . . . Reactor . | . . . . . . Propulsion 6 | 2 . 4 . . . Treads . | . . . . . . Leg 2 | 2 . . . . . Wheel . | . . . . . . Hover . | . . . . . . Flight 4 | . . 4 . . . Utility 2 | 2 . . . . . Device 1 | 1 . . . . . Storage 1 | 1 . . . . . Processor . | . . . . . . Hackware . | . . . . . . Protection . | . . . . . . Artifact . | . . . . . . Weapon 9 | 2 3 3 . . 1 Energy Gun 3 | 2 1 . . . . Energy Cannon 1 | . . . . . 1 Ballistic Gun 5 | . 2 3 . . . Ballistic Cannon . | . . . . . . Launcher . | . . . . . . Special Weapon . | . . . . . . Impact Weapon . | . . . . . . Slashing Weapon . | . . . . . . Piercing Weapon . | . . . . . . Special Melee Weapon . | . . . . . . Unidentified Prototypes . | . . . . . . Parts Lost 9 | . 1 1 . . 7 Power 1 | . . . . . 1 Propulsion 4 | . . 1 . . 3 Utility 1 | . . . . . 1 Weapon 3 | . 1 . . . 2 Highest Loss Streak 7 | . 1 1 . . 7 To Critical Strikes . | . . . . . . Average Backups 6 | 3 6 8 7 7 3 Power 1 | 1 1 1 1 1 . Propulsion 2 | 1 2 3 3 3 1 Utility . | . . 1 1 1 1 Weapon 1 | . 2 2 2 2 1 Tool/Special . | . . . . . . Unused Backups 5 | . . 2 1 . 2 Power . | . . . . . . Propulsion 2 | . . 2 . . . Utility 1 | . . . . . 1 Weapon 2 | . . . 1 . 1 Tool/Special . | . . . . . . Average Slot Usage (%) 86 | . 100 87 85 85 39 Engine 13 | . 14 14 14 14 9 Leg 8 | . 28 3 . . 7 Flight 18 | . . 24 28 28 7 Device 3 | . 14 2 . . . Storage 13 | . 14 14 14 14 3 Energy Gun 3 | . 12 . . . . Ballistic Gun 23 | . 15 28 28 28 4 Peak Build Rating 23 | 9 9 9 8 8 23 Average Rating 8 | 5 9 6 6 8 18 On Entrance 6 | . 9 9 6 8 8 Naked Turns . | . . . . . . Heaviest Build 21 | 15 15 15 10 10 21 Greatest Support 20 | 20 20 20 8 8 20 Greatest Overweight (x) 2 | . . 2 1 1 1 Average Overweight (x) . | . . . 1 1 . Largest Inventory Capacity 8 | 8 8 8 8 8 8 Average Capacity 7 | 7 8 8 8 8 6 Most Carried 8 | 5 8 8 8 8 7 Average Carried 7 | 3 6 7 7 8 4 Final Capacity 8 | 8 8 8 8 8 5 Final Carried 8 | 4 8 8 8 8 2 Class Distribution -------------------- 65% | Scavenger-Mutant 34% | Mutant Dominant Class ---------------- Mutant | -10/Materials Scavenger-Mutant | -10/Mines Scavenger-Mutant | -10/Exiles Scavenger-Mutant | -9/Mines Mutant | -8/Materials Resources | -11 -10 -10 -10 -9 -8 ----------- Run | Yrd Mat Min Exi Min Mat Matter Collected 504 | 238 176 61 . 14 15 Remotely . | . . . . . . Salvage Created 791 | 152 331 91 . . 217 Parts 39 | 8 11 10 . . 10 Haulers Intercepted 1 | . 1 . . . . Recyclers Shooed 1 | . 1 . . . . Parts Field Recycled . | . . . . . . Retrieved Matter . | . . . . . . Parts Self-Destructed . | . . . . . . Prevented . | . . . . . . Kills | -11 -10 -10 -10 -9 -8 ------- Run | Yrd Mat Min Exi Min Mat Combat Hostiles Destroyed 20 | . 5 6 . . 9 Guns 11 | . 4 6 . . 1 Cannons 1 | . . . . . 1 AOE 5 | . . . . . 5 Classes Destroyed 9 | 3 3 1 . . 2 Worker 2 | 2 . . . . . Builder 2 | . . . . . 2 Tunneler 3 | 3 . . . . . Hauler 1 | . 1 . . . . Recycler 2 | 1 1 . . . . Watcher 1 | . 1 . . . . Swarmer 10 | . . 6 . . 4 Grunt 7 | . 5 . . . 2 Sentry 3 | . . . . . 3 Best Kill Streak 11 | 3 2 3 . . 11 Combat Bots Only 9 | . 2 3 . . 9 Max Kills in Single Turn 3 | 1 1 1 . . 3 Gunslinging . | . . . . . . Exploded 3 | . . . . . 3 Melee . | . . . . . . Uniques/NPCs Destroyed . | . . . . . . Combat | -11 -10 -10 -10 -9 -8 -------- Run | Yrd Mat Min Exi Min Mat Hostile Shots Fired 139 | . 31 40 . 4 64 Missed 38 | . 9 8 . 3 18 Hits 101 | . 22 32 . 1 46 Projectile 101 | . 22 32 . 1 46 Critical Strikes 2 | . . . . . 2 Damage Taken 1380 | 30 284 252 . 18 796 Core 337 | . 113 43 . 10 171 Absorbed by Shields . | . . . . . . Core Remaining (%) 66 | 100 . . . 33 . Volleys Fired 82 | 12 37 15 . 1 17 Largest 2 | 2 2 2 . 2 2 Hottest 100 | 90 90 40 . 40 100 Shots Fired 152 | 24 74 30 . 2 22 Gun 144 | 24 74 30 . 2 14 Cannon 8 | . . . . . 8 Launcher . | . . . . . . Special . | . . . . . . Kinetic 94 | . 48 30 . 2 14 Thermal 40 | 12 20 . . . 8 Explosive . | . . . . . . Electromagnetic 18 | 12 6 . . . . Robot Hit Streak 9 | 5 9 5 . . 5 Robot Miss Streak 6 | 6 5 2 . . 6 Penetration Max . | . . . . . . Secondary Targets 3 | . . 2 . . 1 Max Gunslinging Chain 1 | . . 1 . . 1 Shots Hit Robots 71 | 9 42 13 . . 7 Core Hits 38 | 7 15 6 . 1 9 Critical Kills 1 | . . . . . 1 Critical Parts Destroyed . | . . . . . . Critical Strikes 1 | . . . . . 1 Meltdown 1 | . . . . . 1 Melee Attacks . | . . . . . . Impact . | . . . . . . Slashing . | . . . . . . Piercing . | . . . . . . Sneak Attacks . | . . . . . . Combat Hostiles . | . . . . . . Follow-up Attacks . | . . . . . . Damage Inflicted 2147 | 177 536 142 . 4 1288 Guns 820 | 120 532 142 . . 26 Cannons 608 | . . . . . 608 Explosions 711 | 57 . . . . 654 Melee . | . . . . . . Ramming 8 | . 4 . . 4 . Kinetic 570 | . 402 142 . . 26 Thermal 1486 | 94 130 . . . 1262 Explosive . | . . . . . . Electromagnetic 83 | 83 . . . . . Impact . | . . . . . . Slashing . | . . . . . . Piercing . | . . . . . . Highest Corruption . | . . . . . . Average Corruption . | . . . . . . Corruption Purged . | . . . . . . Corruption Blocked . | . . . . . . Overload Shots . | . . . . . . Overflow Damage 303 | . . . . . 303 Projectiles 268 | . . . . . 268 Explosions 35 | . . . . . 35 Melee . | . . . . . . Knockbacks . | . . . . . . Impact . | . . . . . . Kinetic . | . . . . . . Secondary . | . . . . . . Self-Inflicted Damage 297 | 31 . . . 2 264 Shots 5 | 1 . . . . 4 Rammed 1 | . . . . 1 . Targets Rammed 4 | . 3 . . 1 . Kicked 3 | . 3 . . . . Crushed . | . . . . . . Highest Temperature 292 | 252 292 8 . 4 68 Average Temperature 84 | 100 118 4 . 3 36 Received Heat Transfer 306 | . 162 . . . 144 Siege Activations . | . . . . . . Martial Activations . | . . . . . . Shielding Activations . | . . . . . . Robots Disrupted . | . . . . . . Combat Hostiles . | . . . . . . Robots Corrupted . | . . . . . . Combat Hostiles . | . . . . . . Parts Fried . | . . . . . . Impact Corruptions . | . . . . . . Robots Melted 3 | . 1 . . . 2 Combat Hostiles 3 | . 1 . . . 2 Parts Melted 4 | . 2 . . . 2 Heat Transferred 1740 | 211 359 . . . 1170 Parts Sabotaged . | . . . . . . Parts Stolen . | . . . . . . Parts Stripped . | . . . . . . Power Chain Reactions 2 | 2 . . . . . Alert | -11 -10 -10 -10 -9 -8 ------- Run | Yrd Mat Min Exi Min Mat Maximum Alert Level 1 | . . . . . 1 Low Security (%) 96 | 100 100 100 . 100 51 Level 1 3 | . . . . . 48 Level 2 . | . . . . . . Level 3 . | . . . . . . Level 4 . | . . . . . . Level 5 . | . . . . . . High Security . | . . . . . . Max Security . | . . . . . . Peak Influence 287 | 10 75 80 . . 287 Initial 10 | . 6 10 . . . Average 26 | 2 22 27 . . 172 Influence Increases 727 | 30 190 140 . . 367 Destroy 0b10 Robot/C 400 | . 100 120 . . 180 Destroy 0b10 Robot/NC 55 | 30 15 . . . 10 Destroy Leader 84 | . 24 20 . . 40 Successful Hack 35 | . 35 . . . . Disable Machine 60 | . . . . . 60 Destroy Structure 78 | . 1 . . . 77 Lose Combat Pursuer 15 | . 15 . . . . Influence Decreases 460 | 20 173 157 10 . 100 Entered New Map 31 | . 4 17 10 . . Time Decay 369 | 20 169 130 . . 50 Lost Part 60 | . . 10 . . 50 Squads Dispatched 4 | . 2 . . . 2 Investigation 1 | . . . . . 1 Extermination . | . . . . . . Reinforcement 2 | . 2 . . . . Assault . | . . . . . . Garrison 1 | . . . . . 1 Intercept . | . . . . . . Searches Triggered . | . . . . . . Construction Impeded . | . . . . . . Haulers Reinforced . | . . . . . . Active Scanning Responses . | . . . . . . Cargo Convoy Interrupts . | . . . . . . Stealth | -11 -10 -10 -10 -9 -8 --------- Run | Yrd Mat Min Exi Min Mat Distress Signals . | . . . . . . Communications Jammed . | . . . . . . Distress Signals . | . . . . . . Times Spotted 31 | . 11 6 . 4 10 Peak Tracking Total 5 | . 3 3 . 4 5 Tactical Retreats 1 | . 1 . . . . Traps | -11 -10 -10 -10 -9 -8 ------- Run | Yrd Mat Min Exi Min Mat Traps Triggered . | . . . . . . Indirectly . | . . . . . . Trap Hack Attempts . | . . . . . . Triggered . | . . . . . . Disarmed . | . . . . . . Reprogrammed 6 | . 6 . . . . Reused . | . . . . . . Traps Extracted . | . . . . . . Installed . | . . . . . . Triggered . | . . . . . . Machines | -11 -10 -10 -10 -9 -8 ---------- Run | Yrd Mat Min Exi Min Mat Machines Disabled 4 | . . . . . 4 Max in Single Turn 4 | . . . . . 4 Machines Repaired . | . . . . . . Machines Dismantled . | . . . . . . Machines Sabotaged . | . . . . . . Overloaded Fab Kills . | . . . . . . Hacking | -11 -10 -10 -10 -9 -8 --------- Run | Yrd Mat Min Exi Min Mat Machines Accessed 7 | . 4 . 2 . 1 Terminals 4 | . 3 . . . 1 Fabricators . | . . . . . . Repair Stations . | . . . . . . Recycling Units 1 | . 1 . . . . Scanalyzers . | . . . . . . Garrison Access . | . . . . . . Total Hacks 37 | . 11 . 24 . 2 Successful 29 | . 5 . 24 . . Failed 8 | . 6 . . . 2 Catastrophic 1 | . 1 . . . . Database Lockouts . | . . . . . . Manual 1 | . . . 1 . . Terminals 10 | . 8 . . . 2 Fabricators . | . . . . . . Repair Stations . | . . . . . . Recycling Units 3 | . 3 . . . . Scanalyzers . | . . . . . . Garrison Access . | . . . . . . Terminal Hacks 28 | . 4 . 24 . . Record 23 | . . . 23 . . Reprogram Traps 1 | . 1 . . . . Dispatch Records 1 | . 1 . . . . Registered Components 1 | . 1 . . . . Zone Layout 1 | . 1 . . . . Proto ID Catalog 1 | . . . 1 . . Fabricator Hacks . | . . . . . . Repair Station Hacks . | . . . . . . Recycling Unit Hacks 1 | . 1 . . . . Retrieve Components 1 | . 1 . . . . Scanalyzer . | . . . . . . Garrison Access Hacks . | . . . . . . Unauthorized Hacks . | . . . . . . Terminals . | . . . . . . Fabricators . | . . . . . . Repair Stations . | . . . . . . Recycling Units . | . . . . . . Scanalyzers . | . . . . . . Garrison Access . | . . . . . . Data Cores Recovered . | . . . . . . Used . | . . . . . . Hacking Detections 4 | . 3 . . . 1 Full Trace Events 3 | . 2 . . . 1 Feedback Events . | . . . . . . Feedback Blocked . | . . . . . . Robot Schematics Acquired . | . . . . . . Robots Built . | . . . . . . Authchips . | . . . . . . Time . | . . . . . . Total Robot Build Rating . | . . . . . . Part Schematics Acquired . | . . . . . . Parts Built . | . . . . . . Authchips . | . . . . . . Time . | . . . . . . Total Part Build Rating . | . . . . . . Parts Repaired . | . . . . . . Time . | . . . . . . Parts Recycled . | . . . . . . Recycled Matter . | . . . . . . Retrieved Matter . | . . . . . . Retrieved Components . | . . . . . . Parts Scanalyzed . | . . . . . . Part Schematics Acquired . | . . . . . . Parts Damaged . | . . . . . . Bothacking | -11 -10 -10 -10 -9 -8 ------------ Run | Yrd Mat Min Exi Min Mat Used RIF Installer . | . . . . . . Robots Hacked . | . . . . . . Non-combat . | . . . . . . Combat . | . . . . . . Robot Hacks Applied . | . . . . . . Relay Couplers Released . | . . . . . . Fabnet Peak Effective % . | . . . . . . Robots Rewired . | . . . . . . Allies Hacked . | . . . . . . Hacks Repelled . | . . . . . . Allies | -11 -10 -10 -10 -9 -8 -------- Run | Yrd Mat Min Exi Min Mat Total Allies . | . . . . . . Largest Group . | . . . . . . Highest-Rated Group . | . . . . . . Highest-Rated Ally . | . . . . . . Total Orders . | . . . . . . Ally Attacks . | . . . . . . Total Damage . | . . . . . . Kills . | . . . . . . Allies Corrupted . | . . . . . . Allies Melted . | . . . . . . Intel | -11 -10 -10 -10 -9 -8 ------- Run | Yrd Mat Min Exi Min Mat Active Infowar (turns) 650 | 24 571 55 . . . Terrain 650 | 24 571 55 . . . Robot Analysis Total . | . . . . . . Derelict Logs Recovered 2 | . . 1 . 1 . Drone Launches . | . . . . . . Drone Recoveries . | . . . . . . Exploration | -11 -10 -10 -10 -9 -8 ------------- Run | Yrd Mat Min Exi Min Mat Turns Passed 2331 | 118 571 347 643 519 133 Spaces Moved 1691 | 64 349 240 547 433 58 Core 18 | 18 . . . . . Treads . | . . . . . . Legs 433 | 46 349 15 . . 23 Wheels . | . . . . . . Hover . | . . . . . . Flight 1240 | . . 225 547 433 35 Fastest Speed 34 | 50 120 117 117 117 34 Average Speed 116 | 100 120 117 117 117 95 Slowest Speed 200 | 120 120 200 117 117 190 Overloaded Moves . | . . . . . . Propulsion Burnouts . | . . . . . . Robots Hopped . | . . . . . . Potential Cave-ins . | . . . . . . Cave-ins Triggered . | . . . . . . Exploration Rate (%) 47 | 4 55 53 78 81 11 Regions Visited 5 Branch Regions 3 Pre-discovered Areas 3 | . . 1 1 1 . Known Exits Taken . | . . . . . . Unknown Exits Taken 5 | 1 1 1 1 1 . Scrap Searched . | . . . . . . Spaces Dug . | . . . . . . Terrain Destroyed 91 | 5 . . . . 86 Melee . | . . . . . . Projectile 2 | . . . . . 2 AOE 89 | 5 . . . . 84 Terrain Rammed . | . . . . . . Walls Destroyed . | . . . . . . Machines Disabled . | . . . . . . Actions | -11 -10 -10 -10 -9 -8 --------- Run | Yrd Mat Min Exi Min Mat Total 1895 | 93 425 284 550 443 100 Wait 58 | . 29 . . 9 20 Move 1686 | 63 348 239 546 432 58 Hop . | . . . . . . Pick Up 23 | 11 5 6 1 . . Fast Attach 1 | . . 1 . . . Attach 14 | 7 1 1 . . 5 Detach . | . . . . . . Swap 12 | . 2 9 1 . . Drop 15 | . . 13 2 . . Fire 82 | 12 37 15 . 1 17 Melee . | . . . . . . Ram 1 | . . . . 1 . Kick 3 | . 3 . . . . Crush . | . . . . . . Escape Stasis . | . . . . . . Rewire . | . . . . . . Trap . | . . . . . . Miscellaneous . | . . . . . . Route ------- -11/Scrapyard -10/Materials (discovered 3 exits: [*Mat] / [*Min] / [*Sub]) -10/Mines -10/Exiles (discovered 2 exits: [*Min x2]) -9/Mines (discovered 2 exits: *Mat x2) -8/Materials History --------- Turn | Location | Event 10 | -11/Scrapyard | Discovered new exit (range 15) 119 | -11/Scrapyard | Entered Materials 180 | -10/Materials | Discovered new exit (range 9) 315 | -10/Materials | Build established: Mutant 557 | -10/Materials | Discovered new exit (range 11) 570 | -10/Materials | Discovered new exit (range 13) 690 | -10/Materials | Entered Mines 694 | -10/Mines | Core integrity fell below 50% 878 | -10/Mines | Learned location of Mines (-9) 1020 | -10/Mines | Build established: Scavenger-Mutant 1030 | -10/Mines | Deemed a non-threat by the Exiles lab entrance 1031 | -10/Mines | Discovered new exit (range 5) 1037 | -10/Mines | Entered Exiles 1053 | -10/Exiles | Discovered new exit (range 15) 1081 | -10/Exiles | Met 8R-AWN 1115 | -10/Exiles | Met EX-HEX 1176 | -10/Exiles | Met EX-DEC 1239 | -10/Exiles | Visited The Gauntlet 1301 | -10/Exiles | Learned location of Zion (-6) 1363 | -10/Exiles | Discovered new exit (range 14) 1456 | -10/Exiles | Met EX-BIN 1489 | -10/Exiles | Aligned with FarCom system 1490 | -10/Exiles | Given EX-Vault access code 1528 | -10/Exiles | Opened EX-Vault 1538 | -10/Exiles | Found YOLO Cannon 1564 | -10/Exiles | Warned to stay clear of 0b10 Research branches 1680 | -10/Exiles | Left Exiles lab with YOLO Cannon 1680 | -10/Exiles | Entered Mines 1683 | -9/Mines | Met a Derelict bent on vengeance 1765 | -9/Mines | Discovered new exit (range 5) 1944 | -9/Mines | Learned location of Storage (-8) 2070 | -9/Mines | A weapon hastily lodged in a ceiling crevice suddenly fell to the ground 2102 | -9/Mines | Received a Rocket Launcher from a helpful Derelict 2119 | -9/Mines | Learned Materials stockpile data 2179 | -9/Mines | Discovered new exit (range 12) 2199 | -9/Mines | Entered Materials 2199 | -8/Materials | Evolved 4 slots: Propulsion x2, Utility x1, Weapon x1 2252 | -8/Materials | Garrison activated, responded to threat 2287 | -8/Materials | Lost 7 parts (1p3n1u2w) 2311 | -8/Materials | Destroyed 9 combat bots 2332 | -8/Materials | Self-destructed Last Messages --------------- 02268_ U-05 Engineer builds a Wall. 02271_ Destroyed Imp. Ion Engine. 02271_ Y-45 Defender critical meltdown. 02272_ U-05 Engineer builds a Wall. 02281_ U-05 Engineer lays Concrete. 02282_ Y-45 Defender destroyed. 02282_ U-05 Engineer destroyed. 02286_ U-05 Engineer builds a Wall. 02290_ Destroyed Heat Sink. 02290_ Y-45 Defender suffers critical hit (Meltdown). 02290_ Beam Rifle melted. 02310_ K-01 Serf collects debris. 02311_ Acquired 15 matter. 02313_ K-01 Serf collects debris. 02314_ U-05 Engineer lays Concrete. 02315_ U-05 Engineer builds a Wall. 02319_ U-05 Engineer lays Concrete. 02320_ K-01 Serf collects debris. 02322_ U-05 Engineer lays Concrete. 02328_ U-05 Engineer builds a Wall. Map ----- +----------------------------------------------------+ | ?????????????????????????????????????????????????? | | ?????????????????????????????????????????????????? | | ?????????????????????????????????????????????????? | | ?????????????????????????????????????????????????? | | ?????????????????????????????????????????????##### | | ?????????????????????????????????????????????# # | | ?????????????????????????????????????????????# # | | ?????????????????????????????????????????????# # | | ?????????????????????????????????????????????# # | | ???????????????????????????????????########### # | | ???????????????????????????????????# ## # | | ???????????????????????####????????# ## # | | ???????????????????????# ???????# # ] | | ??????????????########?# """ ?????# # | | ??????????????? # """??????# + " | | ???????????????? #] """??????# # | | ????????????????? # ???????# # | | ??????????????????? # ???????# ###### | | ???????????????????##" ;#######?# #????? | | ???=???????????????# ;""""### """#????? | | ?????????????########" [ " #????? | | ???????????? %! = = " #????? | | ???????????????????#" " #????? | | ???????????????????# # "#?????? | | ???????????????????##; #/#### #?????? | | ????????????????????##[ @ # #?????? | | ???????????w?????????# k ![ [# [ #?????? | | ?????????????????????# ] [[ # #?????? | | ?????????????????????# [[ !# #?????? | | ?????????????????????# ] # [ #?????? | | ?????????????????????#########""" """"##?????? | | ??????????????????????????? " " #??????? | | ??????????????????????????? # ######??????? | | ?????????????????????????? """ #### #???????????? | | ?????????????????????????# """ #??# #???????????? | | ?????????????????????????# """ ???# #???????????? | | ?????????????????????????# ?? ???# #???????????? | | ?????????????????????????????###???# #???????????? | | ???????????????????????????????????? ???????????? | | ???????????????????????????????????? ???????????? | | ???????????????????????????????????? ???????????? | | ?????????????????????????????????????#???????????? | | ?????????????????????????????????????????????????? | | ?????????????????????????????????????????????????? | | ?????????????????????????????????????????????????? | | ???????????????????????????????????[?????????????? | | ?????????????????????????????????????????????????? | | ?????????????????????????????????????????????????? | | ?????????????????????????????????????????????????? | | ?????????????????????????????????????????????????? | +----------------------------------------------------+ Best States ------------- Heat Dissipation 31 Energy Generation 10 Energy Capacity 250 Matter Stores 300 Matter Capacity 300 Sight Range 16 Terrain Scan Range 16 Terrain Scan Density 10 Evasion (%) 63 Item Schematics ----------------- None Robot Schematics ------------------ None Fabricated ------------ Nothing Repaired ---------- Nothing Alien Tech Used ----------------- None Achievements -------------- None Challenges ------------ None Game ------ Seed WeldingBlastStripper Manual? 0 Play Time 00:25:30 Cumulative 13.5 hours Start 2025.05.25 @ 20:26:15 End 2025.05.26 @ 17:21:37 Sessions 3 Manual Loads 0 Difficulty Rogue Special Mode None Game No. 17 Rogue 17 Adventurer 0 Explorer 0 Win Type - Total 0 Types 0/0/0/0/0/0/0/0/0/0 Lore% 17 Gallery% 18 Achievement% 18 Wizard Run 0 Options --------- Layout 0 ASCII 0 Keyboard 0 Movement Mouse Keybinds 0 Fullscreen 1 Font 18/SmallcapsGlow Map View 76x50 Zoom Use 0% Tactical HUD 1 Map Filters NONE Filters NONE Steam 1 RUN: e243a5a7-0cfc-402d-9388-a4946cffb069